fUSD/lending_fUSD_20240322
["ID","MTS","AMOUNT","RATE_DAILY","PERIOD"]
[320094452,1711150256313,-500.0,0.00022191,2]
[320094453,1711150256323,-322.62617825,0.00022191,2]
[320094454,1711150256332,-2337.81,0.00022191,2]
[320094455,1711150256341,-1242.63,0.00022191,2]
[320094456,1711150256353,-500.0,0.00022191,2]
[320094457,1711150256366,-500.0,0.00022191,2]
[320094458,1711150256378,-500.0,0.00022191,2]
[320094459,1711150256387,-500.0,0.00022191,2]
[320094460,1711150256397,-500.0,0.00022191,2]
[320094461,1711150256721,-500.0,0.00022191,2]
[320094462,1711150256731,-693.29,0.00022191,2]
[320094463,1711150256743,-500.0,0.00022191,2]
[320094464,1711150256752,-785.37,0.00022191,2]
[320094465,1711150256762,-764.84,0.00022191,2]
[320094466,1711150256773,-500.0,0.00022191,2]
[320094467,1711150256782,-500.0,0.00022191,2]
[320094468,1711150256791,-500.0,0.00022191,2]
[320094469,1711150256800,-500.0,0.00022191,2]
[320094470,1711150256810,-500.0,0.00022191,2]
[320094471,1711150256820,-500.0,0.00022191,2]
[320094472,1711150256830,-500.0,0.00022191,2]
[320094473,1711150256839,-500.0,0.00022191,2]
[320094474,1711150256848,-664.76,0.00022191,2]
[320094475,1711150256858,-990.4,0.00022191,2]
[320094476,1711150256867,-507.48453863,0.00022191,2]
[320094477,1711150256878,-501.15041288,0.00022191,2]
[320094478,1711150256887,-877.57,0.00022191,2]
[320094479,1711150256896,-1380.9,0.00022191,2]
[320094480,1711150256906,-500.0,0.00022191,2]
[320094481,1711150256916,-500.0,0.00022191,2]
[320094482,1711150256925,-1011.38,0.00022191,2]
[320094483,1711150256934,-500.0,0.00022191,2]
[320094484,1711150256944,-487.70214222,0.00022191,2]
[320094485,1711150258132,-2131.12725341,0.00021916,2]
[320094486,1711150258144,-12.29785778,0.00022191,2]
[320094487,1711150258155,-1940.6,0.00022191,2]
[320094488,1711150258167,-500.0,0.00022191,2]
[320094489,1711150258177,-724.6,0.00022191,2]
[320094490,1711150258186,-576.94,0.00022191,2]
[320094491,1711150258197,-1028.13,0.00022191,2]
[320094492,1711150258206,-500.0,0.00022191,2]
[320094493,1711150258216,-1753.71,0.00022191,2]
[320094494,1711150258226,-1190.96,0.00022191,2]
[320094495,1711150258236,-500.0,0.00022191,2]
[320094496,1711150258245,-509.98,0.00022191,2]
[320094497,1711150258255,-500.0,0.00022191,2]
[320094498,1711150258266,-1170.31,0.00022191,2]
[320094499,1711150258278,-686.3,0.00022191,2]
[320094500,1711150258288,-2118.73,0.00022191,2]
[320094501,1711150258298,-500.0,0.00022191,2]
[320094502,1711150258309,-500.0,0.00022191,2]
[320094503,1711150258318,-500.0,0.00022191,2]
[320094504,1711150258328,-500.0,0.00022191,2]
[320094505,1711150258337,-2302.72,0.00022191,2]
[320094506,1711150258346,-1514.64,0.00022191,2]
[320094507,1711150258355,-500.0,0.00022191,2]
[320094508,1711150258365,-955.15,0.00022191,2]
[320094509,1711150258376,-500.0,0.00022191,2]
[320094510,1711150258385,-500.0,0.00022191,2]
[320094511,1711150258394,-5162.72,0.00022191,2]
[320094512,1711150258404,-500.0,0.00022191,2]
[320094513,1711150258415,-739.14,0.00022191,2]
[320094514,1711150258424,-500.0,0.00022191,2]
[320094515,1711150258434,-500.0,0.00022191,2]
[320094516,1711150258445,-500.0,0.00022191,2]
[320094517,1711150258455,-500.0,0.00022191,2]
[320094518,1711150258464,-500.0,0.00022191,2]
[320094519,1711150258473,-1276.61,0.00022191,2]
[320094520,1711150258483,-500.0,0.00022191,2]
[320094521,1711150258492,-500.0,0.00022191,2]
[320094522,1711150258501,-500.0,0.00022191,2]
[320094523,1711150258511,-656.96,0.00022191,2]
[320094524,1711150258520,-1352.87,0.00022191,2]
[320094525,1711150258529,-500.0,0.00022191,2]
[320094526,1711150258538,-1459.58,0.00022191,2]
[320094527,1711150258548,-500.0,0.00022191,2]
[320094528,1711150258557,-1217.19,0.00022191,2]
[320094529,1711150258567,-4148.35,0.00022191,2]
[320094530,1711150258577,-1817.64,0.00022191,2]
[320094531,1711150258586,-1561.01,0.00022191,2]
[320094532,1711150258595,-3205.96,0.00022191,2]
[320094533,1711150258607,-2138.96,0.00022191,2]
[320094534,1711150258617,-500.0,0.00022191,2]
[320094535,1711150258626,-1175.16,0.00022191,2]
[320094536,1711150258635,-6251.24,0.00022191,2]
[320094537,1711150258645,-500.0,0.00022191,2]
[320094538,1711150258654,-740.0,0.00022191,2]
[320094539,1711150258664,-1109.07135096,0.00022191,2]
[320094540,1711150258680,-713.81,0.00022191,2]
[320094541,1711150258702,-875.6832297,0.00022191,2]
[320094542,1711150258714,-267.54541934,0.00022191,2]
[320094543,1711150258724,-53.62355826,0.00022191,2]
[320094544,1711150258737,-446.37644174,0.00022191,2]
[320094545,1711150258747,-379.1231754,0.00022191,2]
[320094546,1711150258845,-515.2794721,0.00022191,2]
[320094547,1711150258858,-250.1973525,0.00022191,2]
[320094548,1711150258867,-2894.09626348,0.00022191,2]
[320094549,1711150258879,-429.0,0.00022191,2]
[320094550,1711150258891,-1200.0,0.00022191,2]
[320094551,1711150258902,-472.37513255,0.00022191,2]
[320094552,1711150258915,-366.43596909,0.00022191,2]
[320094553,1711150258927,-383.57266039,0.00022191,2]
[320094554,1711150258938,-457.13997449,0.00022191,2]
[320094555,1711150258948,-56.7088038,0.00022191,2]
[320094556,1711150258959,-300.0,0.00022191,2]
[320094557,1711150259006,-572.67002,0.00022191,2]
[320094558,1711150259022,-116.6011762,0.00022191,2]
[320094559,1711150259031,-1363.06,0.00022191,2]
[320094560,1711150259040,-5558.66070985,0.00022191,2]
[320094561,1711150259052,-10410.08929015,0.00022191,2]
[320094562,1711150259061,-1223.2,0.00022191,2]
[320094563,1711150259070,-500.0,0.00022191,2]
[320094564,1711150259080,-1810.72,0.00022191,2]
[320094565,1711150259089,-609.09,0.00022191,2]
[320094566,1711150259098,-500.0,0.00022191,2]
[320094567,1711150259107,-488.34043117,0.00022191,2]
[320094568,1711150259119,-681.91,0.00022191,2]
[320094569,1711150259130,-150.08956883,0.00022191,2]
[320094570,1711150259139,-2595.56,0.00022191,2]
[320094571,1711150259148,-500.0,0.00022191,2]
[320094572,1711150259157,-701.16,0.00022191,2]
[320094573,1711150259167,-375.48199882,0.00022191,2]
[320094574,1711150259180,-124.51800118,0.00022191,2]
[320094575,1711150259190,-15786.11,0.00022191,2]
[320094576,1711150259199,-1897.39,0.00022191,2]
[320094577,1711150259209,-5861.59833177,0.00022191,2]
[320094578,1711150259225,-1950.58610927,0.00022191,2]
[320094579,1711150259236,-3573.38134892,0.00022191,2]
[320094580,1711150259252,-3870.86421004,0.00022191,2]
[320094581,1711150259261,-500.0,0.00022191,2]
[320094582,1711150259270,-1187.35,0.00022191,2]
[320094583,1711150259280,-1140.11,0.00022191,2]
[320094584,1711150259290,-500.0,0.00022191,2]
[320094585,1711150259299,-1298.27,0.00022191,2]
[320094586,1711150259309,-1206.85,0.00022191,2]
[320094587,1711150259318,-1308.95,0.00022191,2]
[320094588,1711150259327,-1354.81,0.00022191,2]
[320094589,1711150259336,-764.78,0.00022191,2]
[320094590,1711150259345,-3640.29,0.00022191,2]
[320094591,1711150259354,-926.08,0.00022191,2]
[320094592,1711150259364,-3805.74,0.00022191,2]
[320094593,1711150259375,-500.0,0.00022191,2]
[320094594,1711150259384,-768.44,0.00022191,2]
[320094595,1711150259393,-4275.25,0.00022191,2]
[320094596,1711150259403,-19473.17,0.00022191,2]
[320094597,1711150259414,-500.0,0.00022191,2]
[320094598,1711150259423,-1341.51,0.00022191,2]
[320094599,1711150259433,-500.0,0.00022191,2]
[320094600,1711150259442,-14273.47,0.00022191,2]
[320094601,1711150259452,-3521.87,0.00022191,2]
[320094602,1711150259462,-1530.85,0.00022191,2]
[320094603,1711150259471,-2965.45,0.00022191,2]
[320094604,1711150259481,-500.0,0.00022191,2]
[320094605,1711150259490,-500.0,0.00022191,2]
[320094606,1711150259499,-2364.7,0.00022191,2]
[320094607,1711150259508,-734.17,0.00022191,2]
[320094608,1711150259518,-500.0,0.00022191,2]
[320094609,1711150259528,-500.0,0.00022191,2]
[320094610,1711150259537,-8949.94,0.00022191,2]
[320094611,1711150259547,-777.56,0.00022191,2]
[320094612,1711150259556,-77543.54,0.00022191,2]
[320094613,1711150259565,-500.0,0.00022191,2]
[320094614,1711150259575,-4630.54,0.00022191,2]
[320094615,1711150259584,-500.0,0.00022191,2]
[320094616,1711150259593,-6507.09,0.00022191,2]
[320094617,1711150259603,-1022.31,0.00022191,2]
[320094618,1711150259613,-4193.7,0.00022191,2]
[320094619,1711150259622,-500.0,0.00022191,2]
[320094620,1711150259631,-1492.57,0.00022191,2]
[320094621,1711150259641,-393.94647497,0.00022191,2]
[320094622,1711150259650,-500.0,0.00022191,2]
[320094623,1711150259660,-505.90826763,0.00022191,2]
[320094624,1711150259670,-938.29,0.00022191,2]
[320094625,1711150259679,-1389.65,0.00022191,2]
[320094626,1711150259689,-3266.59,0.00022191,2]
[320094627,1711150259697,-2888.62,0.00022191,2]
[320094628,1711150259707,-7261.71,0.00022191,2]
[320094629,1711150259717,-500.0,0.00022191,2]
[320094630,1711150259726,-500.0,0.00022191,2]
[320094631,1711150259735,-3639.25,0.00022191,2]
[320094632,1711150259745,-617.31910142,0.00022191,2]
[320094633,1711150259754,-5877.66,0.00022191,2]
[320094634,1711150259764,-505.16055659,0.00022191,2]
[320094635,1711150259773,-500.0,0.00022191,2]
[320094636,1711150259783,-569.58,0.00022191,2]
[320094637,1711150259793,-743.41,0.00022191,2]
[320094638,1711150259801,-790.67,0.00022191,2]
[320094639,1711150259810,-500.0,0.00022191,2]
[320094640,1711150259820,-500.0,0.00022191,2]
[320094641,1711150259829,-4086.88,0.00022191,2]
[320094642,1711150259839,-2931.44,0.00022191,2]
[320094643,1711150259848,-580.83,0.00022191,2]
[320094644,1711150259858,-1309.3,0.00022191,2]
[320094645,1711150259867,-855.7,0.00022191,2]
[320094646,1711150259877,-2537.11,0.00022191,2]
[320094647,1711150259887,-1610.57,0.00022191,2]
[320094648,1711150259896,-34852.49,0.00022191,2]
[320094649,1711150259906,-10990.97,0.00022191,2]
[320094650,1711150259916,-466.9526273,0.00022191,2]
[320094651,1711150259926,-791.67,0.00022191,2]
[320094652,1711150259935,-500.0,0.00022191,2]
[320094653,1711150259944,-500.0,0.00022191,2]
[320094654,1711150259954,-898.61,0.00022191,2]
[320094655,1711150259963,-1054.16,0.00022191,2]
[320094656,1711150259973,-9160.53,0.00022191,2]
[320094657,1711150259982,-1895.37,0.00022191,2]
[320094658,1711150259992,-500.0,0.00022191,2]
[320094659,1711150260002,-644.89,0.00022191,2]
[320094660,1711150260011,-956.38,0.00022191,2]
[320094661,1711150260021,-601.62,0.00022191,2]
[320094662,1711150260030,-753.89,0.00022191,2]
[320094663,1711150260040,-979.51,0.00022191,2]
[320094664,1711150260050,-500.0,0.00022191,2]
[320094665,1711150260061,-2553.08,0.00022191,2]
[320094666,1711150260070,-500.0,0.00022191,2]
[320094667,1711150260080,-978.33,0.00022191,2]
[320094668,1711150260090,-566.82,0.00022191,2]
[320094669,1711150260100,-3087.7,0.00022191,2]
[320094670,1711150260109,-42444.96,0.00022191,2]
[320094671,1711150260119,-3292.54,0.00022191,2]
[320094672,1711150260128,-2623.49,0.00022191,2]
[320094673,1711150260140,-1848.68,0.00022191,2]
[320094674,1711150260150,-2880.22,0.00022191,2]
[320094675,1711150260161,-500.0,0.00022191,2]
[320094676,1711150260170,-500.0,0.00022191,2]
[320094677,1711150260179,-1945.79,0.00022191,2]
[320094678,1711150260189,-201.81818426,0.00022191,2]
[320094679,1711150260198,-5606.64,0.00022191,2]
[320094680,1711150260207,-500.0,0.00022191,2]
[320094681,1711150260216,-500.0,0.00022191,2]
[320094682,1711150260226,-1842.28,0.00022191,2]
[320094683,1711150260235,-1149.71,0.00022191,2]
[320094684,1711150260243,-10984.91,0.00022191,2]
[320094685,1711150260253,-2167.44,0.00022191,2]
[320094686,1711150260262,-500.0,0.00022191,2]
[320094687,1711150260272,-500.0,0.00022191,2]
[320094688,1711150260281,-10577.58,0.00022191,2]
[320094689,1711150260291,-2300.72,0.00022191,2]
[320094690,1711150260301,-500.0,0.00022191,2]
[320094691,1711150260311,-6595.65,0.00022191,2]
[320094692,1711150260321,-754.5,0.00022191,2]
[320094693,1711150260331,-1996.25,0.00022191,2]
[320094694,1711150260340,-500.0,0.00022191,2]
[320094695,1711150260350,-1380.32,0.00022191,2]
[320094696,1711150260360,-9976.55,0.00022191,2]
[320094697,1711150260372,-2003.26,0.00022191,2]
[320094698,1711150260382,-2684.12,0.00022191,2]
[320094699,1711150260392,-3529.74,0.00022191,2]
[320094700,1711150260402,-500.0,0.00022191,2]
[320094701,1711150260414,-500.0,0.00022191,2]
[320094702,1711150260423,-505.90015327,0.00022191,2]
[320094703,1711150260433,-530.29,0.00022191,2]
[320094704,1711150260443,-2537.34,0.00022191,2]
[320094705,1711150260453,-910.47,0.00022191,2]
[320094706,1711150260462,-1608.32,0.00022191,2]
[320094707,1711150260472,-1766.57934185,0.00022191,2]
[320094708,1711150260487,-1945.33065815,0.00022191,2]
[320094709,1711150260497,-2811.49,0.00022191,2]
[320094710,1711150260506,-500.0,0.00022191,2]
[320094711,1711150260515,-500.0,0.00022191,2]
[320094712,1711150260524,-9940.58,0.00022191,2]
[320094713,1711150260534,-500.0,0.00022191,2]
[320094714,1711150260544,-730.41,0.00022191,2]
[320094715,1711150260553,-758.1,0.00022191,2]
[320094716,1711150260562,-2775.08,0.00022191,2]
[320094717,1711150260572,-500.0,0.00022191,2]
[320094718,1711150260581,-500.0,0.00022191,2]
[320094719,1711150260591,-1317.93,0.00022191,2]
[320094720,1711150260601,-986.38,0.00022191,2]
[320094721,1711150260610,-768.21,0.00022191,2]
[320094722,1711150260619,-501.79947744,0.00022191,2]
[320094723,1711150260628,-500.0,0.00022191,2]
[320094724,1711150260638,-500.0,0.00022191,2]
[320094725,1711150260648,-23773.27,0.00022191,2]
[320094726,1711150260657,-500.0,0.00022191,2]
[320094727,1711150260668,-1431.31,0.00022191,2]
[320094728,1711150260677,-5138.14,0.00022191,2]
[320094729,1711150260686,-500.0,0.00022191,2]
[320094730,1711150260695,-500.0,0.00022191,2]
[320094731,1711150260705,-973.8,0.00022191,2]
[320094732,1711150260715,-814.89,0.00022191,2]
[320094733,1711150260725,-500.0,0.00022191,2]
[320094734,1711150260735,-5251.86,0.00022191,2]
[320094735,1711150260744,-782.76,0.00022191,2]
[320094736,1711150260753,-2394.51149845,0.00022191,2]
[320094737,1711150260766,-2755.09423192,0.00022191,2]
[320094738,1711150260779,-1467.29741007,0.00022191,2]
[320094739,1711150260795,-729.33576,0.00022191,2]
[320094740,1711150260807,-13935.99109956,0.00022191,2]
[320094741,1711150260816,-4988.22,0.00022191,2]
[320094742,1711150260826,-500.0,0.00022191,2]
[320094743,1711150260836,-2832.01,0.00022191,2]
[320094744,1711150260845,-21147.36,0.00022191,2]
[320094745,1711150260855,-1013.23,0.00022191,2]
[320094746,1711150260865,-500.0,0.00022191,2]
[320094747,1711150260874,-9094.35,0.00022191,2]
[320094748,1711150260884,-1104.78,0.00022191,2]
[320094749,1711150260893,-505.55,0.00022191,2]
[320094750,1711150260903,-4201.97,0.00022191,2]
[320094751,1711150260916,-500.0,0.00022191,2]
[320094752,1711150260926,-500.0,0.00022191,2]
[320094753,1711150260939,-500.0,0.00022191,2]
[320094754,1711150260948,-500.0,0.00022191,2]
[320094755,1711150260958,-1477.07935199,0.00022191,2]
[320094756,1711150261385,-436.23,0.00020225,2]
[320094757,1711150261395,-2198.07064801,0.00022191,2]
[320094758,1711150261405,-500.0,0.00022191,2]
[320094759,1711150261419,-1809.35,0.00022191,2]
[320094760,1711150261429,-992.35,0.00022191,2]
[320094761,1711150261439,-500.0,0.00022191,2]
[320094762,1711150261450,-2178.16,0.00022191,2]
[320094763,1711150261459,-500.0,0.00022191,2]
[320094764,1711150261468,-500.0,0.00022191,2]
[320094765,1711150261477,-720.95507204,0.00022191,2]
[320094766,1711150261497,-975.445154,0.00022191,2]
[320094767,1711150261509,-6385.38020541,0.00022191,2]
[320094768,1711150261520,-1718.97849685,0.00022191,2]
[320094769,1711150261532,-3302.5,0.00022191,2]
[320094770,1711150261544,-3151.6010717,0.00022191,2]
[320094771,1711150261554,-3359.92453516,0.00022191,2]
[320094772,1711150261570,-466.28546484,0.00022191,2]
[320094773,1711150261579,-369.22453516,0.00022191,2]
[320094774,1711150261592,-130.77546484,0.00022191,2]
[320094775,1711150261601,-578.72633516,0.00022191,2]
[320094776,1711150261613,-540.928,0.00022191,2]
[320094777,1711150261625,-389.89,0.00022191,2]
[320094778,1711150261637,-180.81566484,0.00022191,2]
[320094779,1711150261646,-257.67933516,0.00022191,2]
[320094780,1711150261658,-442.608251,0.00022191,2]
[320094781,1711150261673,-505.84,0.00022191,2]
[320094782,1711150261685,-260.92241384,0.00022191,2]
[320094783,1711150261695,-187.58758616,0.00022191,2]
[320094784,1711150261706,-312.41241384,0.00022191,2]
[320094785,1711150261716,-1766.38758616,0.00022191,2]
[320094786,1711150261728,-419.10287483,0.00022191,2]
[320094787,1711150261740,-332.28537817,0.00022191,2]
[320094788,1711150261842,-508.76,0.00022191,2]
[320094789,1711150261854,-574.08241182,0.00022191,2]
[320094790,1711150261866,-772.82854254,0.00022191,2]
[320094791,1711150261878,-5303.22755136,0.00022191,2]
[320094792,1711150261889,-434.37775277,0.00022191,2]
[320094793,1711150261989,-15670.97790235,0.00022191,2]
[320094794,1711150261999,-2284.45,0.00022191,2]
[320094795,1711150262009,-1542.85,0.00022191,2]
[320094796,1711150262018,-584.6,0.00022191,2]
[320094797,1711150262027,-1858.36715851,0.00022191,2]
[320094798,1711150262044,-341.04,0.00022191,2]
[320094799,1711150262056,-743.26504621,0.00022191,2]
[320094800,1711150262067,-634.204895,0.00022191,2]
[320094801,1711150263302,-500.0,0.00021917,2]
[320094802,1711150263312,-500.0,0.00021917,2]
[320094803,1711150263321,-30.43290028,0.00022191,2]
[320094804,1711150263330,-914.61,0.00022191,2]
[320094805,1711150263340,-1747.45,0.00022191,2]
[320094806,1711150263349,-16775.74374969,0.00022191,2]
[320094807,1711150263361,-710.457,0.00022191,2]
[320094808,1711150263379,-500.0,0.00022191,2]
[320094809,1711150263390,-1459.03154576,0.00022191,2]
[320094810,1711150263406,-3303.89961839,0.00022191,2]
[320094811,1711150263427,-500.0,0.00021917,2]
[320094812,1711150263436,-1244.32203037,0.00022191,2]
[320094813,1711150263449,-417.95823573,0.00022191,2]
[320094814,1711150263461,-1676.33708745,0.00022191,2]
[320094815,1711150263473,-1687.635,0.00022191,2]
[320094816,1711150263485,-1712.25832484,0.00022191,2]
[320094817,1711150263497,-3682.58740777,0.00022191,2]
[320094818,1711150263508,-253.20028317,0.00022191,2]
[320094819,1711150263517,-500.0,0.00022191,2]
[320094820,1711150263526,-2019.27,0.00022191,2]
[320094821,1711150263536,-500.0,0.00022191,2]
[320094822,1711150263546,-9178.56,0.00022191,2]
[320094823,1711150263555,-3374.06,0.00022191,2]
[320094824,1711150263565,-1507.58,0.00022191,2]
[320094825,1711150263574,-588.92,0.00022191,2]
[320094826,1711150263584,-500.0,0.00022191,2]
[320094827,1711150263593,-504.88495332,0.00022191,2]
[320094828,1711150263603,-3731.67,0.00022191,2]
[320094829,1711150263612,-500.0,0.00022191,2]
[320094830,1711150263621,-1223.43,0.00022191,2]
[320094831,1711150263631,-20288.53,0.00022191,2]
[320094832,1711150263640,-2672.99,0.00022191,2]
[320094833,1711150263649,-500.0,0.00022191,2]
[320094834,1711150263659,-534.6,0.00022191,2]
[320094835,1711150263670,-669.57,0.00022191,2]
[320094836,1711150263679,-500.0,0.00022191,2]
[320094837,1711150263688,-500.0,0.00022191,2]
[320094838,1711150263698,-500.0,0.00022191,2]
[320094839,1711150263707,-1478.78,0.00022191,2]
[320094840,1711150263716,-1547.64,0.00022191,2]
[320094841,1711150263725,-500.0,0.00022191,2]
[320094842,1711150263734,-500.0,0.00022191,2]
[320094843,1711150263744,-3377.53,0.00022191,2]
[320094844,1711150263754,-793.71,0.00022191,2]
[320094845,1711150263762,-1872.50817703,0.00022191,2]
[320094846,1711150263775,-2304.31182297,0.00022191,2]
[320094847,1711150263784,-1636.79,0.00022191,2]
[320094848,1711150263793,-1549.28,0.00022191,2]
[320094849,1711150263802,-5532.1,0.00022191,2]
[320094850,1711150263812,-239.86,0.00022191,2]
[320094851,1711150263821,-500.0,0.00022191,2]
[320094852,1711150263830,-641.42,0.00022191,2]
[320094853,1711150263839,-49.56282595,0.00022191,2]
[320094854,1711150263851,-1050.09717405,0.00022191,2]
[320094855,1711150263861,-33.36282595,0.00022191,2]
[320094856,1711150263873,-466.63717405,0.00022191,2]
[320094857,1711150263882,-349.63946595,0.00022191,2]
[320094858,1711150263894,-3890.34053405,0.00022191,2]
[320094859,1711150263903,-1528.23,0.00022191,2]
[320094860,1711150263912,-2027.99093193,0.00022191,2]
[320094861,1711150263928,-2341.17013201,0.00022191,2]
[320094862,1711150263990,-333.5134452,0.00022191,2]
[320094863,1711150264003,-454.31549086,0.00022191,2]
[320094864,1711150264013,-534.36,0.00022191,2]
[320094865,1711150264023,-1197.39,0.00022191,2]
[320094866,1711150264032,-1395.13,0.00022191,2]
[320094867,1711150264042,-500.0,0.00022191,2]
[320094868,1711150264051,-1476.28715804,0.00022191,2]
[320094869,1711151154115,-297.28,0.00018578,2]
[320094870,1711151154135,-50.51189631,0.00018804,2]
[320094871,1711151241208,-948.79091697,0.00017864,2]
[320094872,1711151241235,-108.36305932,0.00018804,2]
[320094873,1711151241260,-291.12818161,0.00018804,2]
[320094874,1711151241284,-178.66401072,0.00018804,2]
[320094875,1711151241311,-341.66314673,0.00018804,2]
[320094876,1711151241334,-363.66320945,0.00018804,2]
[320094877,1711151242194,-6072.77499796,0.00018904,2]
[320094878,1711151242245,-2890.88268225,0.00018904,2]
[320094881,1711151432123,-948.79091697,0.00017959,2]
[320094882,1711151432133,-282.41,0.0001863,2]
[320094883,1711151432144,-341.40301907,0.00018804,2]
[320094884,1711151432154,-290.99834623,0.00018804,2]
[320094885,1711151432164,-2109.11731775,0.00018904,2]
[320094886,1711151432174,-5000.0,0.00018904,2]
[320094887,1711151432185,-5000.0,0.00018904,2]
[320094888,1711151432195,-5000.0,0.00018904,2]
[320094889,1711151432207,-178.66401072,0.00018904,2]
[320094890,1711151432219,-363.66320945,0.00018904,2]
[320094891,1711151432229,-150.0,0.00018904,2]
[320094892,1711151432239,-150.0,0.00018904,2]
[320094893,1711151432249,-150.0,0.00018904,2]
[320094894,1711151432259,-150.0,0.00018904,2]
[320094895,1711151432270,-150.0,0.00018904,2]
[320094896,1711151432280,-150.0,0.00018904,2]
[320094897,1711151432290,-150.0,0.00018904,2]
[320094898,1711151432300,-150.0,0.00018904,2]
[320094899,1711151432309,-150.0,0.00018904,2]
[320094900,1711151432842,-150.0,0.00018904,2]
[320094901,1711151432852,-150.0,0.00018904,2]
[320094902,1711151432861,-150.0,0.00018904,2]
[320094903,1711151432871,-150.0,0.00018904,2]
[320094904,1711151432881,-150.0,0.00018904,2]
[320094905,1711151432892,-150.0,0.00018904,2]
[320094906,1711151432902,-150.0,0.00018904,2]
[320094907,1711151432911,-150.0,0.00018904,2]
[320094908,1711151432921,-150.0,0.00018904,2]
[320094909,1711151432930,-150.0,0.00018904,2]
[320094910,1711151432939,-150.0,0.00018904,2]
[320094911,1711151432949,-150.0,0.00018904,2]
[320094912,1711151432958,-150.0,0.00018904,2]
[320094913,1711151432979,-150.0,0.00018904,2]
[320094914,1711151432990,-150.0,0.00018904,2]
[320094915,1711151433002,-150.0,0.00018904,2]
[320094916,1711151433013,-150.0,0.00018904,2]
[320094917,1711151433023,-150.0,0.00018904,2]
[320094918,1711151433033,-150.0,0.00018904,2]
[320094919,1711151433043,-150.0,0.00018904,2]
[320094920,1711151433054,-150.0,0.00018904,2]
[320094921,1711151433064,-150.0,0.00018904,2]
[320094922,1711151433074,-181.3675944,0.00018904,2]
[320094923,1711151433085,-150.0,0.00018986,2]
[320094924,1711151433095,-300.0,0.00019,2]
[320094925,1711151433105,-1538.94108656,0.0001949,2]
[320094926,1711151433116,-155.15394228,0.00019724,2]
[320094927,1711151433125,-155.24588426,0.00019724,2]
[320094928,1711151433135,-358.0,0.00020252,2]
[320094929,1711151433146,-156.0,0.00020252,2]
[320094930,1711151433156,-151.0,0.00020252,2]
[320094931,1711151433166,-499.99,0.00020252,2]
[320094932,1711151433177,-152.49,0.00020352,2]
[320094933,1711151433187,-473.06,0.00020352,2]
[320094934,1711151433197,-169.74,0.00020352,2]
[320094935,1711151433207,-250.0,0.00020397,2]
[320094936,1711151433218,-2467.4306,0.00020414,2]
[320094937,1711151433229,-380.77,0.00020431,2]
[320094938,1711151433240,-154.2,0.00020435,2]
[320094939,1711151433250,-3069.88,0.00020458,2]
[320094940,1711151433261,-150.99,0.00020461,2]
[320094941,1711151433272,-1631.36,0.00020463,2]
[320094942,1711151433287,-23900.0,0.00020496,2]
[320094943,1711151433297,-526.94,0.00020496,2]
[320094944,1711151433307,-150.0,0.00020496,2]
[320094945,1711151433318,-250.0,0.00020496,2]
[320094946,1711151433329,-1203.08,0.00020496,2]
[320094947,1711151433339,-261.6,0.00020496,2]
[320094948,1711151433350,-342.81,0.00020496,10]
[320094949,1711151433360,-286.22,0.00020504,2]
[320094950,1711151433370,-22136.91,0.0002053,2]
[320094951,1711151433380,-449.15029414,0.000206,2]
[320094952,1711151433390,-154.03,0.00020661,2]
[320094953,1711151433400,-160.03,0.00020795,2]